[Event "Late-Titled-Tuesday-Blitz-March-19-2024"]
[Site "Chess.com"]
[Date "2024.03.19"]
[Round "8"]
[White "Szparu"]
[Black "LikeWater"]
[Result "1-0"]
[WhiteElo "2798"]
[BlackElo "2656"]
[TimeControl "180+1"]
[EndTime "15:22:17 PDT"]
[Termination "Szparu won by resignation"]

1. e4 {[%clk 0:03:00.9]} 1... Nf6 {[%clk 0:02:59.1]} 2. e5 {[%clk 0:03:01.1]}
2... Nd5 {[%clk 0:02:59.5]} 3. d4 {[%clk 0:03:02]} 3... d6 {[%clk 0:02:59.7]} 4.
c4 {[%clk 0:03:02.7]} 4... Nb6 {[%clk 0:03:00.1]} 5. f4 {[%clk 0:03:03.4]} 5...
dxe5 {[%clk 0:02:59.5]} 6. fxe5 {[%clk 0:03:04.3]} 6... Nc6 {[%clk 0:02:58.9]}
7. Be3 {[%clk 0:03:04.8]} 7... Bf5 {[%clk 0:02:58.9]} 8. Nc3 {[%clk 0:03:05.4]}
8... e6 {[%clk 0:02:59.4]} 9. Be2 {[%clk 0:03:05.9]} 9... Be7 {[%clk 0:02:59.8]}
10. Nf3 {[%clk 0:03:06.3]} 10... O-O {[%clk 0:03:00.2]} 11. O-O {[%clk
0:03:06.9]} 11... f6 {[%clk 0:03:00.7]} 12. exf6 {[%clk 0:03:07.8]} 12... Bxf6
{[%clk 0:03:01.3]} 13. Qd2 {[%clk 0:03:08.6]} 13... Qe7 {[%clk 0:02:59.5]} 14.
Rad1 {[%clk 0:03:08.9]} 14... Rad8 {[%clk 0:02:59.5]} 15. Qc1 {[%clk 0:03:05.1]}
15... Kh8 {[%clk 0:02:58.8]} 16. h3 {[%clk 0:03:05.2]} 16... h6 {[%clk
0:02:58.3]} 17. Kh1 {[%clk 0:03:04.7]} 17... Bh7 {[%clk 0:02:56.8]} 18. Rfe1
{[%clk 0:03:04.5]} 18... Rd7 {[%clk 0:02:55.8]} 19. Bf1 {[%clk 0:03:04.2]} 19...
Rfd8 {[%clk 0:02:55.2]} 20. d5 {[%clk 0:03:04.5]} 20... Na5 {[%clk 0:02:52.1]}
21. dxe6 {[%clk 0:03:00.5]} 21... Qxe6 {[%clk 0:02:53]} 22. Bxh6 {[%clk
0:02:53.3]} 22... Rxd1 {[%clk 0:02:52.6]} 23. Nxd1 {[%clk 0:02:52.9]} 23... Qc6
{[%clk 0:02:50.4]} 24. Bg5 {[%clk 0:02:49.2]} 24... Naxc4 {[%clk 0:02:47.2]} 25.
Bxf6 {[%clk 0:02:49.5]} 25... gxf6 {[%clk 0:02:46.9]} 26. Re7 {[%clk 0:02:42.9]}
26... Ne5 {[%clk 0:02:41.2]} 27. Qh6 {[%clk 0:02:42.6]} 1-0

[Event "Late-Titled-Tuesday-Blitz-March-19-2024"]
[Site "Chess.com"]
[Date "2024.03.19"]
[Round "8"]
[White "angelgab3"]
[Black "Eloist"]
[Result "0-1"]
[WhiteElo "2631"]
[BlackElo "2507"]
[TimeControl "180+1"]
[EndTime "15:23:31 PDT"]
[Termination "Eloist won by resignation"]

1. e4 {[%clk 0:03:00.9]} 1... e6 {[%clk 0:02:59.8]} 2. d4 {[%clk 0:03:01]} 2...
d5 {[%clk 0:03:00.5]} 3. Nc3 {[%clk 0:03:01.9]} 3... Nf6 {[%clk 0:03:00.6]} 4.
Bg5 {[%clk 0:03:01]} 4... dxe4 {[%clk 0:03:00.4]} 5. Nxe4 {[%clk 0:03:01.9]}
5... Be7 {[%clk 0:03:00.8]} 6. Bxf6 {[%clk 0:03:02.4]} 6... gxf6 {[%clk
0:03:00.1]} 7. Nf3 {[%clk 0:03:03.3]} 7... f5 {[%clk 0:02:59.6]} 8. Nc3 {[%clk
0:03:04.1]} 8... a6 {[%clk 0:02:59.8]} 9. g3 {[%clk 0:03:02.8]} 9... b5 {[%clk
0:02:59.3]} 10. Bg2 {[%clk 0:03:03.7]} 10... Bb7 {[%clk 0:02:59.8]} 11. O-O
{[%clk 0:03:03.9]} 11... O-O {[%clk 0:02:59.6]} 12. Ne5 {[%clk 0:03:02.5]} 12...
Bxg2 {[%clk 0:02:58.5]} 13. Kxg2 {[%clk 0:03:03.4]} 13... c5 {[%clk 0:02:44.4]}
14. Qf3 {[%clk 0:02:54.6]} 14... cxd4 {[%clk 0:02:11.9]} 15. Qxa8 {[%clk
0:02:44.2]} 15... dxc3 {[%clk 0:02:11.6]} 16. bxc3 {[%clk 0:02:45.1]} 16... Qc7
{[%clk 0:02:01.1]} 17. Rae1 {[%clk 0:02:34.9]} 17... Bf6 {[%clk 0:01:45.1]} 18.
Nf3 {[%clk 0:02:33.7]} 18... Qb6 {[%clk 0:01:28]} 19. Nd4 {[%clk 0:02:15.1]}
19... Bxd4 {[%clk 0:01:26.9]} 20. cxd4 {[%clk 0:02:14.5]} 20... Nc6 {[%clk
0:01:26.2]} 0-1

[Event "Late-Titled-Tuesday-Blitz-March-19-2024"]
[Site "Chess.com"]
[Date "2024.03.19"]
[Round "8"]
[White "yuriydovzik"]
[Black "Sacbutt"]
[Result "0-1"]
[WhiteElo "2117"]
[BlackElo "2313"]
[TimeControl "180+1"]
[EndTime "15:23:57 PDT"]
[Termination "Sacbutt won by resignation"]

1. e4 {[%clk 0:02:59.1]} 1... b6 {[%clk 0:02:59.1]} 2. d4 {[%clk 0:02:57.2]}
2... Bb7 {[%clk 0:02:59.3]} 3. Nc3 {[%clk 0:02:55.4]} 3... e6 {[%clk 0:02:59.4]}
4. a3 {[%clk 0:02:54.7]} 4... Nf6 {[%clk 0:02:57.8]} 5. e5 {[%clk 0:02:51.4]}
5... Ne4 {[%clk 0:02:56.8]} 6. Qf3 {[%clk 0:02:33.1]} 6... Nd6 {[%clk
0:02:33.2]} 7. Qh3 {[%clk 0:02:10.3]} 7... Nf5 {[%clk 0:02:30.9]} 8. Nge2 {[%clk
0:02:06.2]} 8... c5 {[%clk 0:02:30.8]} 9. d5 {[%clk 0:02:03.6]} 9... Nd4 {[%clk
0:02:21.3]} 10. Nxd4 {[%clk 0:01:44.6]} 10... cxd4 {[%clk 0:02:22.2]} 11. Ne4
{[%clk 0:01:31.1]} 11... Bxd5 {[%clk 0:02:18.6]} 12. Bg5 {[%clk 0:01:22.7]}
12... Qc7 {[%clk 0:02:07.3]} 13. Nd6+ {[%clk 0:01:16.5]} 13... Bxd6 {[%clk
0:02:05.5]} 14. exd6 {[%clk 0:01:16]} 14... Qxd6 {[%clk 0:02:04.1]} 15. Bd3
{[%clk 0:01:08]} 15... Qe5+ {[%clk 0:02:00.5]} 0-1

[Event "Late-Titled-Tuesday-Blitz-March-19-2024"]
[Site "Chess.com"]
[Date "2024.03.19"]
[Round "8"]
[White "maurovargas01"]
[Black "esrosenberg"]
[Result "0-1"]
[WhiteElo "1846"]
[BlackElo "2479"]
[TimeControl "180+1"]
[EndTime "15:24:16 PDT"]
[Termination "esrosenberg won by checkmate"]

1. e4 {[%clk 0:03:00]} 1... e6 {[%clk 0:03:00]} 2. Nc3 {[%clk 0:02:58.3]} 2...
d5 {[%clk 0:03:00.2]} 3. d3 {[%clk 0:02:57.8]} 3... d4 {[%clk 0:02:58.7]} 4.
Nce2 {[%clk 0:02:57.6]} 4... c5 {[%clk 0:02:56.5]} 5. g3 {[%clk 0:02:57.6]} 5...
Nc6 {[%clk 0:02:56.3]} 6. Bg2 {[%clk 0:02:57.8]} 6... h5 {[%clk 0:02:55.5]} 7.
f4 {[%clk 0:02:58]} 7... h4 {[%clk 0:02:55.8]} 8. g4 {[%clk 0:02:57.8]} 8... e5
{[%clk 0:02:41.4]} 9. h3 {[%clk 0:02:53]} 9... Bd6 {[%clk 0:02:36.9]} 10. fxe5
{[%clk 0:02:51.2]} 10... Nxe5 {[%clk 0:02:34.3]} 11. Nf3 {[%clk 0:02:35.6]}
11... Nxf3+ {[%clk 0:02:29.3]} 12. Bxf3 {[%clk 0:02:35.4]} 12... Ne7 {[%clk
0:02:29.3]} 13. O-O {[%clk 0:02:33.9]} 13... Ng6 {[%clk 0:02:28.6]} 14. Qe1
{[%clk 0:02:28.4]} 14... Qc7 {[%clk 0:02:24.4]} 15. Bg2 {[%clk 0:02:09]} 15...
Be6 {[%clk 0:02:19]} 16. Nf4 {[%clk 0:01:56.9]} 16... Bxf4 {[%clk 0:02:15.7]}
17. Bxf4 {[%clk 0:01:56.5]} 17... Nxf4 {[%clk 0:02:16.1]} 18. Qd2 {[%clk
0:01:52.1]} 18... g5 {[%clk 0:02:09.7]} 19. Rf2 {[%clk 0:01:47.2]} 19... O-O-O
{[%clk 0:02:09.2]} 20. Bf1 {[%clk 0:01:44.2]} 20... Qe5 {[%clk 0:02:05.2]} 21.
Rc1 {[%clk 0:01:43.3]} 21... Kb8 {[%clk 0:02:05.2]} 22. c3 {[%clk 0:01:40.6]}
22... dxc3 {[%clk 0:02:05.5]} 23. bxc3 {[%clk 0:01:33.7]} 23... c4 {[%clk
0:02:03.1]} 24. d4 {[%clk 0:01:30.5]} 24... Qxe4 {[%clk 0:02:03.5]} 25. Qb2
{[%clk 0:01:22.4]} 25... Bd5 {[%clk 0:01:58.9]} 26. Rb1 {[%clk 0:01:16.4]} 26...
Qh1# {[%clk 0:01:51]} 0-1

[Event "Late-Titled-Tuesday-Blitz-March-19-2024"]
[Site "Chess.com"]
[Date "2024.03.19"]
[Round "8"]
[White "DFeco"]
[Black "Boundless_Strike"]
[Result "1-0"]
[WhiteElo "2481"]
[BlackElo "2622"]
[TimeControl "180+1"]
[EndTime "15:24:17 PDT"]
[Termination "DFeco won by resignation"]

1. d4 {[%clk 0:03:00.9]} 1... e5 {[%clk 0:02:58.9]} 2. dxe5 {[%clk 0:02:59.7]}
2... d6 {[%clk 0:02:59.1]} 3. exd6 {[%clk 0:02:59.1]} 3... Bxd6 {[%clk 0:03:00]}
4. Nf3 {[%clk 0:02:58.6]} 4... Nc6 {[%clk 0:03:00.7]} 5. c3 {[%clk 0:02:55.5]}
5... Bg4 {[%clk 0:02:59.5]} 6. h3 {[%clk 0:02:51.6]} 6... Bh5 {[%clk 0:02:58]}
7. e3 {[%clk 0:02:48]} 7... Qe7 {[%clk 0:02:56.7]} 8. Be2 {[%clk 0:02:44]} 8...
O-O-O {[%clk 0:02:56.6]} 9. Nd4 {[%clk 0:02:43.9]} 9... Bxe2 {[%clk 0:02:54.2]}
10. Qxe2 {[%clk 0:02:42.8]} 10... Ne5 {[%clk 0:02:51.7]} 11. Nf5 {[%clk
0:02:38.4]} 11... Qg5 {[%clk 0:02:44.3]} 12. Nxd6+ {[%clk 0:02:36.8]} 12... Rxd6
{[%clk 0:02:44.3]} 13. O-O {[%clk 0:02:32.8]} 13... Nd3 {[%clk 0:02:38.7]} 14.
b3 {[%clk 0:02:24.9]} 14... Nf6 {[%clk 0:02:37.1]} 15. Ba3 {[%clk 0:02:23.1]}
15... Rd7 {[%clk 0:02:30.7]} 16. Nd2 {[%clk 0:02:20.8]} 16... h5 {[%clk
0:02:19.3]} 17. Nf3 {[%clk 0:02:19.6]} 17... Qa5 {[%clk 0:02:16.6]} 18. Bb2
{[%clk 0:02:16.4]} 18... Ne4 {[%clk 0:02:16.4]} 19. c4 {[%clk 0:02:04]} 19...
Rg8 {[%clk 0:02:11.7]} 20. Nd4 {[%clk 0:01:58.2]} 20... Nxb2 {[%clk 0:02:07.6]}
21. Qxb2 {[%clk 0:01:58]} 21... g5 {[%clk 0:02:08.5]} 22. Rad1 {[%clk
0:01:37.1]} 22... g4 {[%clk 0:02:04.6]} 23. hxg4 {[%clk 0:01:37.1]} 23... hxg4
{[%clk 0:02:03.9]} 24. Nb5 {[%clk 0:01:37.4]} 24... Rxd1 {[%clk 0:01:56.9]} 25.
Rxd1 {[%clk 0:01:36.3]} 25... a6 {[%clk 0:01:55.7]} 26. Qe5 {[%clk 0:01:22.5]}
26... Nxf2 {[%clk 0:01:52.1]} 27. Na7+ {[%clk 0:01:19.4]} 27... Kb8 {[%clk
0:01:50.5]} 28. Qxa5 {[%clk 0:01:19.4]} 1-0

[Event "Late-Titled-Tuesday-Blitz-March-19-2024"]
[Site "Chess.com"]
[Date "2024.03.19"]
[Round "8"]
[White "GoltsevDmitry2000"]
[Black "dropstoneDP"]
[Result "1/2-1/2"]
[WhiteElo "2778"]
[BlackElo "2985"]
[TimeControl "180+1"]
[EndTime "15:24:59 PDT"]
[Termination "Game drawn by repetition"]

1. e4 {[%clk 0:02:35.9]} 1... e5 {[%clk 0:02:59.8]} 2. Nf3 {[%clk 0:02:35.7]}
2... Nf6 {[%clk 0:03:00.4]} 3. Nxe5 {[%clk 0:02:36]} 3... d6 {[%clk 0:03:00.7]}
4. Nf3 {[%clk 0:02:36.3]} 4... Nxe4 {[%clk 0:03:01.3]} 5. d3 {[%clk 0:02:37.2]}
5... Nf6 {[%clk 0:03:01.5]} 6. d4 {[%clk 0:02:37.9]} 6... d5 {[%clk 0:03:01.9]}
7. c4 {[%clk 0:02:38.7]} 7... Bb4+ {[%clk 0:03:01.8]} 8. Nc3 {[%clk 0:02:39.1]}
8... O-O {[%clk 0:03:02.4]} 9. Be2 {[%clk 0:02:39.5]} 9... dxc4 {[%clk
0:03:02.5]} 10. Bxc4 {[%clk 0:02:40.4]} 10... Nc6 {[%clk 0:03:01.3]} 11. O-O
{[%clk 0:02:40.3]} 11... Bg4 {[%clk 0:03:01.2]} 12. Bg5 {[%clk 0:02:40.8]} 12...
h6 {[%clk 0:02:51.8]} 13. Bh4 {[%clk 0:02:39.6]} 13... Bxf3 {[%clk 0:02:38]} 14.
Qxf3 {[%clk 0:02:40.5]} 14... Qxd4 {[%clk 0:02:38.4]} 15. Bxf6 {[%clk
0:02:39.4]} 15... Qxf6 {[%clk 0:02:36]} 16. Qxf6 {[%clk 0:02:38.6]} 16... gxf6
{[%clk 0:02:36.9]} 17. Nd5 {[%clk 0:02:39.5]} 17... Kg7 {[%clk 0:02:37.2]} 18.
Nxc7 {[%clk 0:02:39]} 18... Rac8 {[%clk 0:02:36]} 19. Nd5 {[%clk 0:02:38.8]}
19... Rfd8 {[%clk 0:02:30.5]} 20. Rfd1 {[%clk 0:02:32.8]} 20... Bc5 {[%clk
0:01:57.2]} 21. Rac1 {[%clk 0:02:20.6]} 21... Nb4 {[%clk 0:01:34.8]} 22. Nxb4
{[%clk 0:02:18.5]} 22... Bxb4 {[%clk 0:01:32.9]} 23. Rxd8 {[%clk 0:02:01.7]}
23... Rxd8 {[%clk 0:01:33.8]} 24. Bb3 {[%clk 0:02:02.4]} 24... Ba5 {[%clk
0:01:22.5]} 25. Rd1 {[%clk 0:02:00.7]} 25... Rxd1+ {[%clk 0:01:22.1]} 26. Bxd1
{[%clk 0:02:01.6]} 26... f5 {[%clk 0:01:22.6]} 27. Kf1 {[%clk 0:02:00]} 27...
Kf6 {[%clk 0:01:22.7]} 28. Ke2 {[%clk 0:01:59.9]} 28... Bc7 {[%clk 0:01:23.2]}
29. h3 {[%clk 0:01:58.8]} 29... Be5 {[%clk 0:01:23.2]} 30. b3 {[%clk 0:01:59]}
30... b5 {[%clk 0:01:19.1]} 31. Bc2 {[%clk 0:01:59.2]} 31... a5 {[%clk
0:01:16.6]} 32. Bd3 {[%clk 0:01:59.3]} 32... b4 {[%clk 0:01:16.6]} 33. Bc4
{[%clk 0:01:58.9]} 33... Bd4 {[%clk 0:01:15.9]} 34. f4 {[%clk 0:01:56.5]} 34...
Bb6 {[%clk 0:01:05.9]} 35. Kf3 {[%clk 0:01:56.4]} 35... Bc7 {[%clk 0:01:05.8]}
36. Bd5 {[%clk 0:01:56.2]} 36... Bb6 {[%clk 0:01:05.1]} 37. Bc4 {[%clk
0:01:56.6]} 37... Bc7 {[%clk 0:01:05.6]} 38. Bd5 {[%clk 0:01:57.1]} 38... Bb6
{[%clk 0:01:06.3]} 39. Bc4 {[%clk 0:01:57.7]} 1/2-1/2

[Event "Late-Titled-Tuesday-Blitz-March-19-2024"]
[Site "Chess.com"]
[Date "2024.03.19"]
[Round "8"]
[White "cthake"]
[Black "rcmz"]
[Result "1-0"]
[WhiteElo "1833"]
[BlackElo "2209"]
[TimeControl "180+1"]
[EndTime "15:25:09 PDT"]
[Termination "cthake won by resignation"]

1. e4 {[%clk 0:03:00.9]} 1... a6 {[%clk 0:02:57.9]} 2. b3 {[%clk 0:02:59.7]}
2... e6 {[%clk 0:02:54.9]} 3. Bb2 {[%clk 0:02:59.6]} 3... b5 {[%clk 0:02:53.2]}
4. g3 {[%clk 0:02:59.4]} 4... Bb7 {[%clk 0:02:53.2]} 5. Bg2 {[%clk 0:02:59.1]}
5... c5 {[%clk 0:02:53.2]} 6. Ne2 {[%clk 0:02:57.8]} 6... Nf6 {[%clk 0:02:52.2]}
7. d3 {[%clk 0:02:57.3]} 7... d5 {[%clk 0:02:50.9]} 8. exd5 {[%clk 0:02:52.3]}
8... Bxd5 {[%clk 0:02:49.6]} 9. O-O {[%clk 0:02:47.3]} 9... Be7 {[%clk 0:02:46]}
10. Nd2 {[%clk 0:02:45.1]} 10... Nbd7 {[%clk 0:02:40.1]} 11. Ne4 {[%clk
0:02:40.9]} 11... Bxe4 {[%clk 0:02:21.1]} 12. dxe4 {[%clk 0:02:37.6]} 12... e5
{[%clk 0:02:20.9]} 13. Nc3 {[%clk 0:02:32.6]} 13... O-O {[%clk 0:02:19.3]} 14.
Nd5 {[%clk 0:02:32.1]} 14... Re8 {[%clk 0:02:18.5]} 15. Nxe7+ {[%clk 0:02:16.1]}
15... Qxe7 {[%clk 0:02:16.8]} 16. Qe2 {[%clk 0:02:15]} 16... Nb6 {[%clk
0:02:08.2]} 17. Rad1 {[%clk 0:02:14]} 17... Red8 {[%clk 0:02:05.9]} 18. Rxd8+
{[%clk 0:02:12]} 18... Rxd8 {[%clk 0:02:05]} 19. Rd1 {[%clk 0:02:12.4]} 19... c4
{[%clk 0:02:02.1]} 20. Rxd8+ {[%clk 0:01:55.3]} 20... Qxd8 {[%clk 0:02:01.4]}
21. Bxe5 {[%clk 0:01:55]} 21... h6 {[%clk 0:01:48.1]} 22. h4 {[%clk 0:01:48.7]}
22... h5 {[%clk 0:01:41.7]} 23. Bxf6 {[%clk 0:01:43.4]} 23... Qxf6 {[%clk
0:01:39]} 24. Qxh5 {[%clk 0:01:42]} 24... Qa1+ {[%clk 0:01:33.9]} 25. Kh2 {[%clk
0:01:41.7]} 25... Qxa2 {[%clk 0:01:33.9]} 26. Qc5 {[%clk 0:01:37.6]} 26... Qa5
{[%clk 0:01:29.6]} 27. b4 {[%clk 0:01:36.1]} 27... Qa3 {[%clk 0:01:19.8]} 28.
Qxb6 {[%clk 0:01:35.6]} 28... Qxb4 {[%clk 0:01:20.1]} 29. Qxa6 {[%clk
0:01:35.8]} 29... Qc5 {[%clk 0:01:18.6]} 30. Qa8+ {[%clk 0:01:32.8]} 30... Kh7
{[%clk 0:01:17.6]} 31. Qd5 {[%clk 0:01:31.5]} 31... Qb6 {[%clk 0:01:16.7]} 32.
Qxf7 {[%clk 0:01:30.2]} 32... c3 {[%clk 0:01:12.7]} 33. e5 {[%clk 0:01:30.3]}
33... Qd4 {[%clk 0:01:09.4]} 34. e6 {[%clk 0:01:28.1]} 34... b4 {[%clk
0:01:07.3]} 35. e7 {[%clk 0:01:25.9]} 1-0

[Event "Late-Titled-Tuesday-Blitz-March-19-2024"]
[Site "Chess.com"]
[Date "2024.03.19"]
[Round "8"]
[White "chucksterf10"]
[Black "Vahe_Danielyan"]
[Result "0-1"]
[WhiteElo "2557"]
[BlackElo "2664"]
[TimeControl "180+1"]
[EndTime "15:25:15 PDT"]
[Termination "Vahe_Danielyan won by checkmate"]

1. f4 {[%clk 0:03:00.9]} 1... e5 {[%clk 0:02:55.7]} 2. fxe5 {[%clk 0:03:01.8]}
2... d6 {[%clk 0:02:55.9]} 3. exd6 {[%clk 0:03:02.7]} 3... Bxd6 {[%clk
0:02:55.7]} 4. Nf3 {[%clk 0:03:02.9]} 4... Bg4 {[%clk 0:02:48.1]} 5. e3 {[%clk
0:03:01]} 5... Nc6 {[%clk 0:02:46.8]} 6. Be2 {[%clk 0:02:57.8]} 6... Qe7 {[%clk
0:02:40.8]} 7. O-O {[%clk 0:02:56.4]} 7... O-O-O {[%clk 0:02:37]} 8. Nc3 {[%clk
0:02:53.1]} 8... Nf6 {[%clk 0:02:34.2]} 9. d4 {[%clk 0:02:49.2]} 9... Kb8 {[%clk
0:02:33.8]} 10. a3 {[%clk 0:02:18.5]} 10... h5 {[%clk 0:02:32.4]} 11. b4 {[%clk
0:02:17.1]} 11... h4 {[%clk 0:02:26.2]} 12. b5 {[%clk 0:02:14.9]} 12... Bxf3
{[%clk 0:02:24.7]} 13. Bxf3 {[%clk 0:02:14.6]} 13... Ne5 {[%clk 0:02:23.2]} 14.
dxe5 {[%clk 0:02:06.7]} 14... Qxe5 {[%clk 0:02:20.2]} 15. Bd2 {[%clk 0:01:35.7]}
15... Qxh2+ {[%clk 0:02:18.9]} 16. Kf2 {[%clk 0:01:36]} 16... Be5 {[%clk
0:02:17.7]} 17. Qc1 {[%clk 0:01:12.1]} 17... h3 {[%clk 0:02:14.4]} 18. Rg1
{[%clk 0:00:46.9]} 18... hxg2 {[%clk 0:02:10]} 19. Rxg2 {[%clk 0:00:46.8]} 19...
Qh4+ {[%clk 0:02:10.9]} 20. Ke2 {[%clk 0:00:47]} 20... Bxc3 {[%clk 0:02:10]} 21.
Bxc3 {[%clk 0:00:45.5]} 21... Qc4+ {[%clk 0:02:10.4]} 22. Kf2 {[%clk 0:00:44.4]}
22... Qxc3 {[%clk 0:02:11.3]} 23. Kg1 {[%clk 0:00:38]} 23... Nd5 {[%clk
0:02:04.5]} 24. Qe1 {[%clk 0:00:30.6]} 24... Qe5 {[%clk 0:02:04.1]} 25. Rd1
{[%clk 0:00:23.1]} 25... Nxe3 {[%clk 0:02:02.3]} 26. Rxd8+ {[%clk 0:00:23.1]}
26... Rxd8 {[%clk 0:02:03.2]} 27. Re2 {[%clk 0:00:19.2]} 27... Qg5+ {[%clk
0:02:03.1]} 28. Kf2 {[%clk 0:00:19.2]} 28... Qh4+ {[%clk 0:01:57.1]} 29. Kxe3
{[%clk 0:00:14.6]} 29... Qd4# {[%clk 0:01:56.8]} 0-1

[Event "Late-Titled-Tuesday-Blitz-March-19-2024"]
[Site "Chess.com"]
[Date "2024.03.19"]
[Round "8"]
[White "Masterisback04"]
[Black "uzkuzk"]
[Result "0-1"]
[WhiteElo "1953"]
[BlackElo "2487"]
[TimeControl "180+1"]
[EndTime "15:25:17 PDT"]
[Termination "uzkuzk won on time"]

1. e4 {[%clk 0:03:00.9]} 1... e5 {[%clk 0:02:58.9]} 2. Nc3 {[%clk 0:03:00.6]}
2... f5 {[%clk 0:02:58.9]} 3. f4 {[%clk 0:03:01.3]} 3... exf4 {[%clk 0:02:56.2]}
4. Nf3 {[%clk 0:02:59.7]} 4... fxe4 {[%clk 0:02:55.1]} 5. Nxe4 {[%clk
0:02:57.4]} 5... d5 {[%clk 0:02:55.4]} 6. Neg5 {[%clk 0:02:44.6]} 6... Nf6
{[%clk 0:02:53]} 7. Bd3 {[%clk 0:02:35]} 7... Nc6 {[%clk 0:02:39]} 8. O-O {[%clk
0:02:33.5]} 8... Bc5+ {[%clk 0:02:38.6]} 9. Kh1 {[%clk 0:02:33.8]} 9... O-O
{[%clk 0:02:38.7]} 10. c3 {[%clk 0:01:59.2]} 10... h6 {[%clk 0:02:32.9]} 11. Nh3
{[%clk 0:01:57.7]} 11... Ne4 {[%clk 0:02:32.7]} 12. Nhg1 {[%clk 0:01:29.2]}
12... Bg4 {[%clk 0:02:26.1]} 13. Bc2 {[%clk 0:01:25.3]} 13... Nf2+ {[%clk
0:02:18.4]} 14. Rxf2 {[%clk 0:01:24.8]} 14... Bxf2 {[%clk 0:02:19.3]} 15. d4
{[%clk 0:01:09.1]} 15... Be3 {[%clk 0:02:16.9]} 16. Bxe3 {[%clk 0:00:32.8]}
16... fxe3 {[%clk 0:02:17.8]} 17. Qd3 {[%clk 0:00:30]} 17... Bf5 {[%clk
0:02:10.2]} 18. Qe2 {[%clk 0:00:29.1]} 18... Qe7 {[%clk 0:02:06.4]} 19. Re1
{[%clk 0:00:27.6]} 19... Rae8 {[%clk 0:02:06.3]} 20. Bxf5 {[%clk 0:00:19.7]}
20... Rxf5 {[%clk 0:02:05.7]} 21. h3 {[%clk 0:00:18.8]} 21... Qe4 {[%clk
0:02:01.8]} 22. Nh2 {[%clk 0:00:11.3]} 22... Rf2 {[%clk 0:02:00.1]} 23. Qg4
{[%clk 0:00:10.2]} 23... Rxb2 {[%clk 0:01:58.5]} 24. Ngf3 {[%clk 0:00:04.9]}
24... Rxa2 {[%clk 0:01:57.4]} 25. Qxe4 {[%clk 0:00:01.3]} 25... Rxe4 {[%clk
0:01:56.4]} 0-1

[Event "Late-Titled-Tuesday-Blitz-March-19-2024"]
[Site "Chess.com"]
[Date "2024.03.19"]
[Round "8"]
[White "AlexTruskavetsky"]
[Black "Truequitos"]
[Result "1-0"]
[WhiteElo "2662"]
[BlackElo "2552"]
[TimeControl "180+1"]
[EndTime "15:25:22 PDT"]
[Termination "AlexTruskavetsky won by resignation"]

1. d4 {[%clk 0:03:00]} 1... d5 {[%clk 0:02:59.9]} 2. c4 {[%clk 0:02:59.6]} 2...
Nc6 {[%clk 0:03:00]} 3. Nc3 {[%clk 0:02:58.1]} 3... Nf6 {[%clk 0:02:58.9]} 4.
cxd5 {[%clk 0:02:58.1]} 4... Nxd5 {[%clk 0:02:59.6]} 5. e4 {[%clk 0:02:58.8]}
5... Nxc3 {[%clk 0:02:59.9]} 6. bxc3 {[%clk 0:02:59.7]} 6... e5 {[%clk
0:03:00.4]} 7. Nf3 {[%clk 0:02:58.8]} 7... exd4 {[%clk 0:02:58.8]} 8. cxd4
{[%clk 0:02:59.7]} 8... Bb4+ {[%clk 0:02:57.9]} 9. Bd2 {[%clk 0:02:59.7]} 9...
Bxd2+ {[%clk 0:02:56]} 10. Qxd2 {[%clk 0:03:00.6]} 10... O-O {[%clk 0:02:52.4]}
11. d5 {[%clk 0:03:00.6]} 11... Ne7 {[%clk 0:02:46.6]} 12. Bc4 {[%clk
0:03:00.3]} 12... Re8 {[%clk 0:02:45.5]} 13. O-O {[%clk 0:03:00.3]} 13... Ng6
{[%clk 0:02:45.7]} 14. Rfe1 {[%clk 0:03:00.6]} 14... Ne5 {[%clk 0:02:43.6]} 15.
Nxe5 {[%clk 0:03:00.7]} 15... Rxe5 {[%clk 0:02:44.3]} 16. f4 {[%clk 0:03:01.6]}
16... Re8 {[%clk 0:02:41.7]} 17. e5 {[%clk 0:03:01.8]} 17... Bf5 {[%clk
0:02:40.9]} 18. Rad1 {[%clk 0:03:00.8]} 18... Qe7 {[%clk 0:02:39.7]} 19. d6
{[%clk 0:02:55.7]} 19... cxd6 {[%clk 0:02:40.6]} 20. exd6 {[%clk 0:02:56]} 20...
Qd7 {[%clk 0:02:32.8]} 21. Qb4 {[%clk 0:02:52]} 21... a6 {[%clk 0:02:16.9]} 22.
Bd5 {[%clk 0:02:50.2]} 22... Rab8 {[%clk 0:01:32.3]} 23. Re7 {[%clk 0:02:42.6]}
23... Rxe7 {[%clk 0:01:21.9]} 24. dxe7 {[%clk 0:02:43.5]} 24... Be6 {[%clk
0:01:22.1]} 25. Bb3 {[%clk 0:02:40]} 25... Qe8 {[%clk 0:00:49.4]} 26. Qd6 {[%clk
0:02:38.4]} 26... Ra8 {[%clk 0:00:29.4]} 27. Bxe6 {[%clk 0:02:36.9]} 27... fxe6
{[%clk 0:00:30.1]} 28. Qxe6+ {[%clk 0:02:37.8]} 28... Kh8 {[%clk 0:00:30.7]} 29.
Rd7 {[%clk 0:02:25.2]} 29... Rc8 {[%clk 0:00:22.3]} 30. h3 {[%clk 0:02:16.7]}
30... h6 {[%clk 0:00:21.5]} 31. Qd5 {[%clk 0:02:14.8]} 31... Kh7 {[%clk
0:00:16.8]} 32. Qe4+ {[%clk 0:02:10]} 32... g6 {[%clk 0:00:15.9]} 33. Qd5 {[%clk
0:02:08.7]} 33... Kg7 {[%clk 0:00:15.1]} 34. Rd8 {[%clk 0:02:06.9]} 34... Rc1+
{[%clk 0:00:15.1]} 35. Kh2 {[%clk 0:02:06.8]} 35... Qxe7 {[%clk 0:00:15.3]} 36.
Rd7 {[%clk 0:02:06.5]} 1-0